Cogmind - Beta 10.2 @@@ ROGUE MODE // 2020.11.08 @ 10:06:19 // Halloween2020/ForbiddenLore Player: Demise Result: Destroyed by C-40 Crusher with Compactor Performance ------------- Evolutions (3) 1500 Regions Visited (9) 1800 Robots Destroyed (89) 445 Value Destroyed (3242) 3242 Prototype IDs (29) 580 Alien Tech Used (0) 0 Bonus (1289) 1289 TOTAL SCORE: 8856 Bonus ------- High Alert Combat Kills 260 Follower Combat Kills 176 Entered Garrisons 200 Used RIF Installer 500 Aligned with FarCom 300 Friendly Fire -147 Cogmind --------- Core Integrity 0/700 Matter 203/300 Energy 100/100 System Corruption 10% Temperature Cool (0) Movement Core (50) Location -7/Waste Parts ------- > --- POWER (1) -------- (None) > --- PROPULSION (2) --- (None) > --- UTILITY (8) ------ (None) > --- WEAPON (2) ------- (None) > --- INVENTORY (4) ---- (None) Peak State ------------ > --- POWER ------------ Fission Core > --- PROPULSION ------- Improved Medium Treads Improved Medium Treads > --- UTILITY ---------- Improved Cooling System High-capacity Storage Unit High-capacity Storage Unit Improved Heavy Armor Plating Relay Coupler [Sentry] > --- WEAPON ----------- AWS/Gauss > --- INVENTORY -------- Light Angular Momentum Engine Light Treads Armored Wheel Advanced Heat Sink Makeshift Cloaking Device Layered Medium Armor Plating Medium Reactive Plating Relay Coupler [NC] Relay Coupler [NC] Relay Coupler [Brawler] Dynamic Insulation System Beamcaster Ion Cannon Guided Plasma Cannon Heavy Machine Gun Magnetic Acceleration Cannon Improved Grenade Launcher Remote Datajack Mining Laser Axe [Rating: 58] Favorites ----------- Power Fission Core Engine Light Angular Momentum Engine Power Core Fission Core Propulsion Light Treads Treads Light Treads Leg Aluminum Leg Wheel Armored Wheel Utility High-capacity Storage Unit Device Improved Shield Generator Storage High-capacity Storage Unit Hackware Relay Coupler [Sentry] Protection Medium Armor Plating Weapon Autogun Energy Gun EM Pulse Gun Energy Cannon Guided Plasma Cannon Ballistic Gun Autogun Ballistic Cannon Magnetic Acceleration Cannon Launcher Improved Grenade Launcher Special Weapon Remote Datajack Slashing Weapon Axe Build | -11 -10 -10 -10 -9 -8 -8 -8 -7 -7 ------- Run | Scr Mat Min Exi Min Mat Gar Mat Fac Was Slots Evolved 6 | . . . . . 4 . . 2 . Power . | . . . . . . . . . . Propulsion . | . . . . . . . . . . Utility 6 | . . . . . 4 . . 2 . Weapon . | . . . . . . . . . . Parts Attached 139 | 4 14 4 4 6 3 57 26 14 7 Power 10 | . 1 3 . 1 . 1 3 1 . Engine 3 | . . 2 . . . . . 1 . Core 7 | . 1 1 . 1 . 1 3 . . Reactor . | . . . . . . . . . . Propulsion 14 | 2 1 . . 1 . 9 1 . . Treads 11 | 2 1 . . 1 . 7 . . . Leg . | . . . . . . . . . . Wheel 3 | . . . . . . 2 1 . . Hover . | . . . . . . . . . . Flight . | . . . . . . . . . . Utility 47 | 1 4 . 2 . 3 19 8 6 4 Device 11 | . . . . . 1 5 2 1 2 Storage 10 | 1 4 . 1 . 1 2 1 . . Processor . | . . . . . . . . . . Hackware 11 | . . . . . . 4 5 2 . Protection 15 | . . . 1 . 1 8 . 3 2 Artifact . | . . . . . . . . . . Weapon 68 | 1 8 1 2 4 . 28 14 7 3 Energy Gun 8 | 1 . . . . . . 4 3 . Energy Cannon 13 | . . . . . . 12 1 . . Ballistic Gun 29 | . 6 1 2 4 . 11 3 1 1 Ballistic Cannon 3 | . . . . . . . 1 . 2 Launcher 2 | . . . . . . 1 . 1 . Special Weapon 10 | . 2 . . . . 3 4 1 . Impact Weapon . | . . . . . . . . . . Slashing Weapon 3 | . . . . . . 1 1 1 . Piercing Weapon . | . . . . . . . . . . Special Melee Weapon . | . . . . . . . . . . Unidentified Prototypes 4 | . . . . . . . 4 . . Parts Lost 16 | . 2 . . . . 2 1 5 6 Power 3 | . . . . . . . 1 1 1 Propulsion 2 | . . . . . . 1 . 1 . Utility 5 | . . . . . . 1 . . 4 Weapon 6 | . 2 . . . . . . 3 1 Highest Loss Streak 4 | . 2 . . . . 2 1 2 4 Average Slot Usage (%) 96 | . 98 100 98 99 82 95 98 91 71 Core 9 | . 11 12 14 14 9 8 8 4 . Treads 17 | . 28 28 28 28 18 16 . . . Wheel 3 | . . . . . . 1 18 15 5 Device 6 | . . . . . 8 14 3 1 11 Storage 25 | . 28 28 20 28 26 19 36 30 22 Hackware 4 | . . . . . . 4 12 17 12 Protection 5 | . . . 6 . 2 12 . 4 1 Energy Gun 1 | . 5 . . . . . . 5 . Energy Cannon 2 | . . . . . . 6 3 . . Ballistic Gun 12 | . 19 28 28 27 18 4 1 1 1 Special Weapon 2 | . 1 . . . . 4 7 4 . Naked Turns 12 | . . . . . . . . . 12 Heaviest Build 160 | 17 74 72 75 84 116 152 153 157 160 Greatest Support 60 | 40 40 40 40 40 40 60 24 24 12 Greatest Overweight (x) 25 | . 1 1 1 2 2 6 11 12 25 Average Overweight (x) 2 | . . 1 . 1 1 2 5 5 11 Largest Inventory Capacity 44 | 8 20 20 20 20 28 36 44 36 36 Average Capacity 22 | 7 16 20 15 20 27 21 36 36 27 Most Carried 36 | 8 20 20 20 20 26 36 36 36 35 Average Carried 22 | 7 16 19 13 19 22 20 35 35 26 Final Capacity 36 | 8 20 20 20 20 28 36 36 36 4 Final Carried 36 | 8 19 20 20 20 26 36 36 36 . Class Distribution -------------------- 54% | Hauler-Mutant 24% | Bothacker-Mutant 12% | Mutant 4% | Commander-Mutant 3% | Scavenger-Mutant Dominant Class ---------------- Mutant | -10/Materials Hauler-Mutant | -10/Mines Hauler-Mutant | -10/Exiles Hauler-Mutant | -9/Mines Hauler-Mutant | -8/Materials Hauler-Mutant | -8/Garrison Bothacker-Mutant | -8/Materials Bothacker-Mutant | -7/Factory Bothacker-Mutant | -7/Waste Resources | -11 -10 -10 -10 -9 -8 -8 -8 -7 -7 ----------- Run | Scr Mat Min Exi Min Mat Gar Mat Fac Was Matter Collected 2752 | 340 411 90 . 271 53 888 375 324 . Remotely . | . . . . . . . . . . Salvage Created 3442 | 261 431 193 . 190 35 1318 647 367 . Parts 196 | 20 25 8 . 16 3 62 38 24 . Haulers Intercepted 1 | . 1 . . . . . . . . Recyclers Shooed 4 | 1 1 1 . . . . . 1 . Parts Field Recycled . | . . . . . . . . . . Retrieved Matter . | . . . . . . . . . . Parts Self-Destructed . | . . . . . . . . . . Prevented . | . . . . . . . . . . Kills | -11 -10 -10 -10 -9 -8 -8 -8 -7 -7 ------- Run | Scr Mat Min Exi Min Mat Gar Mat Fac Was Combat Hostiles Destroyed 69 | . 9 2 . 12 . 27 14 5 . Guns 38 | . 9 2 . 12 . 11 1 3 . Cannons 25 | . . . . . . 12 13 . . AOE 6 | . . . . . . 4 . 2 . Classes Destroyed 14 | 3 6 . . 1 . 2 1 1 . Worker 6 | 2 . 1 . 1 . . . 2 . Builder 5 | . 2 . . . . . 1 2 . Tunneler 5 | 5 . . . . . . . . . Hauler 1 | . 1 . . . . . . . . Recycler 4 | 1 . 1 . . . . . 2 . Operator 2 | . 1 . . . . . . 1 . Watcher 2 | . 1 . . . 1 . . . . Swarmer 27 | . 3 . . 6 . 12 2 4 . Grunt 20 | . 6 2 . . . 6 6 . . Sentry 13 | . . . . . . 8 5 . . Hunter 1 | . . . . . . . 1 . . Programmer 1 | . . . . . . . . 1 . Behemoth 2 | . . . . . . 2 . . . Assembled 6 | . . . . 6 . . . . . Best Kill Streak 8 | 4 3 1 . 6 1 8 4 7 . Combat Bots Only 8 | . 3 1 . 6 . 8 3 4 . Max Kills in Single Turn 5 | 2 1 1 . 1 1 2 1 5 . Gunslinging . | . . . . . . . . . . Exploded 2 | . . . . . . 2 . 2 . Melee . | . . . . . . . . . . Uniques/NPCs Destroyed . | . . . . . . . . . . Combat | -11 -10 -10 -10 -9 -8 -8 -8 -7 -7 -------- Run | Scr Mat Min Exi Min Mat Gar Mat Fac Was Damage Taken 4113 | . 385 50 . 375 . 869 240 942 1252 Core 940 | . 13 . . 132 . 66 17 88 624 Absorbed by Shields 239 | . . . . . . 239 . . . Core Remaining (%) 75 | 100 . . . 42 . . 84 . . Volleys Fired 367 | 14 67 15 . 23 3 124 76 36 9 Largest 2 | 2 2 2 . 2 2 2 2 2 2 Hottest 136 | 80 100 40 . 46 46 120 120 136 106 Shots Fired 541 | 28 112 30 . 56 6 169 83 44 13 Gun 317 | 28 93 30 . 56 6 67 8 28 1 Cannon 147 | . . . . . . 84 49 2 12 Launcher 8 | . . . . . . 7 . 1 . Special 69 | . 19 . . . . 11 26 13 . Kinetic 259 | 2 52 30 . 56 6 67 24 9 13 Thermal 167 | . 19 . . . . 84 39 25 . Explosive 8 | . . . . . . 7 . 1 . Electromagnetic 67 | 26 41 . . . . . . . . Robot Hit Streak 27 | 9 14 8 . 15 1 27 12 5 5 Robot Miss Streak 6 | 1 3 2 . 4 3 2 3 6 2 Penetration Max 1 | . . . . . . 1 . . . Secondary Targets 7 | . 3 . . 1 . 2 . 1 . Max Gunslinging Chain 1 | . 1 . . 1 . 1 . 1 . Autonomous 35 | . . . . 11 . 24 . . . Shots Hit Robots 292 | 18 62 23 . 34 2 88 31 27 7 Core Hits 143 | 9 22 9 . 14 2 46 18 17 6 Critical Hits 4 | . 1 1 . . . 2 . . . Critical Kills 1 | . . . . . . 1 . . . Critical Parts Destroyed 3 | . 1 1 . . . 1 . . . Melee Attacks 23 | . . . . . . 14 1 8 . Impact . | . . . . . . . . . . Slashing 23 | . . . . . . 14 1 8 . Piercing . | . . . . . . . . . . Sneak Attacks 1 | . . . . . . . . 1 . Combat Hostiles . | . . . . . . . . . . Follow-up Attacks . | . . . . . . . . . . Damage Inflicted 8940 | 241 895 199 . 685 30 4330 1232 1073 255 Guns 3804 | 241 835 199 . 678 30 1263 158 383 17 Cannons 2939 | . . . . . . 1708 1024 . 207 Explosions 884 | . 36 . . . . 387 . 461 . Melee 1187 | . . . . . . 972 . 215 . Ramming 102 | . . . . 7 . . 50 14 31 Kinetic 3174 | 14 394 199 . 678 30 1263 296 76 224 Thermal 2961 | . 60 . . . . 1708 886 307 . Explosive 848 | . . . . . . 387 . 461 . Electromagnetic 668 | 227 441 . . . . . . . . Impact . | . . . . . . . . . . Slashing 1187 | . . . . . . 972 . 215 . Piercing . | . . . . . . . . . . Highest Corruption 10 | . . . . . . . . . 10 Average Corruption 7 | . . . . . . . . . 7 Corruption Purged . | . . . . . . . . . . Effects 8 | . . . . . . . . . 8 Matter Fused 1 | . . . . . . . . . 1 Heat Flow Errors 1 | . . . . . . . . . 1 Energy Discharges 2 | . . . . . . . . . 2 Data Loss (minor) 1 | . . . . . . . . . 1 Data Loss (major) 1 | . . . . . . . . . 1 Misdirections 1 | . . . . . . . . . 1 Targeting Errors 1 | . . . . . . . . . 1 Overload Shots . | . . . . . . . . . . Overflow Damage 434 | . . . . . . 192 120 122 . Projectiles 201 | . . . . . . 89 112 . . Explosions 47 | . . . . . . 47 . . . Melee 186 | . . . . . . 56 8 122 . Knockbacks 1 | . . . . . . . 1 . . Impact . | . . . . . . . . . . Kinetic 1 | . . . . . . . 1 . . Secondary . | . . . . . . . . . . Self-Inflicted Damage 136 | . . . . . . . 24 99 13 Shots 1 | . . . . . . . . 1 . Rammed 18 | . . . . 1 . . 3 1 13 Targets Rammed 18 | . . . . 1 . . 3 1 13 Kicked . | . . . . . . . . . . Crushed . | . . . . . . . . . . Highest Temperature 370 | 108 280 13 . 31 . 368 370 231 156 Average Temperature 85 | 43 72 4 . 12 . 122 90 69 52 Received Heat Transfer 495 | . 159 24 . 69 . 123 90 30 . Effects 5 | . . . . . . 4 1 . . Energy Bleed 4 | . . . . . . 3 1 . . Interference 1 | . . . . . . 1 . . . Siege Activations . | . . . . . . . . . . Robots Corrupted 1 | . 1 . . . . . . . . Combat Hostiles . | . . . . . . . . . . Parts Fried 3 | . 3 . . . . . . . . Impact Corruptions 1 | . . . . . . . 1 . . Robots Melted . | . . . . . . . . . . Combat Hostiles . | . . . . . . . . . . Parts Melted 8 | . . . . . . 6 2 . . Heat Transferred 6332 | . 100 . . . . 3714 2000 518 . Parts Sabotaged . | . . . . . . . . . . Parts Stolen . | . . . . . . . . . . Parts Stripped . | . . . . . . . . . . Power Chain Reactions 1 | . 1 . . . . . . . . Missiles Intercepted . | . . . . . . . . . . Alert | -11 -10 -10 -10 -9 -8 -8 -8 -7 -7 ------- Run | Scr Mat Min Exi Min Mat Gar Mat Fac Was Peak Influence 1017 | 40 238 173 . 90 76 1017 502 199 66 Initial 456 | . 26 23 . . 35 51 456 . 62 Average 347 | 21 73 38 . 30 67 725 200 57 47 Maximum Alert Level 3 | . 1 . . . . 3 2 . . Low Security (%) 58 | 100 93 100 . 100 100 13 57 100 100 Level 1 4 | . 6 . . . . . 28 . . Level 2 10 | . . . . . . 22 13 . . Level 3 26 | . . . . . . 63 . . . Level 4 . | . . . . . . . . . . Level 5 . | . . . . . . . . . . High Security . | . . . . . . . . . . Max Security . | . . . . . . . . . . Squads Dispatched 10 | . 3 . . 1 . . 5 1 . Investigation 4 | . 2 . . 1 . . 1 . . Extermination . | . . . . . . . . . . Reinforcement 6 | . 1 . . . . . 4 1 . Assault . | . . . . . . . . . . Garrison . | . . . . . . . . . . Intercept . | . . . . . . . . . . Construction Impeded . | . . . . . . . . . . Haulers Reinforced 1 | . . . . . . . . 1 . Stealth | -11 -10 -10 -10 -9 -8 -8 -8 -7 -7 --------- Run | Scr Mat Min Exi Min Mat Gar Mat Fac Was Distress Signals 8 | . 1 . . 1 . . 6 . . Communications Jammed . | . . . . . . . . . . Distress Signals . | . . . . . . . . . . Times Spotted 130 | . 22 7 . 21 1 28 33 12 6 Peak Tracking Total 6 | . 5 3 . 6 1 6 5 4 6 Tactical Retreats 11 | . 2 . . 3 . 1 5 . . Traps | -11 -10 -10 -10 -9 -8 -8 -8 -7 -7 ------- Run | Scr Mat Min Exi Min Mat Gar Mat Fac Was Traps Triggered 14 | . 1 . . . . 10 2 1 . Indirectly . | . . . . . . . . . . Trap Hack Attempts . | . . . . . . . . . . Triggered . | . . . . . . . . . . Disarmed . | . . . . . . . . . . Reprogrammed . | . . . . . . . . . . Reused . | . . . . . . . . . . Traps Extracted . | . . . . . . . . . . Installed . | . . . . . . . . . . Triggered . | . . . . . . . . . . Exploded 1 | . . . 1 . . . . . . Machines | -11 -10 -10 -10 -9 -8 -8 -8 -7 -7 ---------- Run | Scr Mat Min Exi Min Mat Gar Mat Fac Was Machines Disabled 10 | . . 1 . 1 . 6 . 2 . Max in Single Turn 2 | . . . . 1 . 1 . 2 . Garrison Access 2 | . . . . . . . 1 1 . Garrison Relay 5 | . . . . . . 5 . . . Machines Sabotaged . | . . . . . . . . . . Garrisons Compromised . | . . . . . . . . . . Overloaded Fab Kills . | . . . . . . . . . . Fab Network Shutdowns . | . . . . . . . . . . Hacking | -11 -10 -10 -10 -9 -8 -8 -8 -7 -7 --------- Run | Scr Mat Min Exi Min Mat Gar Mat Fac Was Machines Accessed 30 | . 9 1 2 2 2 . 8 6 . Terminals 18 | . 6 1 . 1 1 . 6 3 . Fabricators 1 | . . . . . . . . 1 . Repair Stations 2 | . 1 . . . . . . 1 . Recycling Units 2 | . 2 . . . . . . . . Scanalyzers 1 | . . . . . . . 1 . . Garrison Access 3 | . . . . . 1 . 1 1 . Total Hacks 77 | . 27 4 5 4 5 . 17 15 . Successful 49 | . 17 2 5 2 4 . 9 10 . Failed 27 | . 10 2 . 2 1 . 7 5 . Catastrophic 6 | . 1 2 . 1 1 . 1 . . Database Lockouts 1 | . . . . . . . 1 . . Manual 56 | . 22 4 1 3 4 . 14 8 . Terminals 54 | . 23 4 . 3 4 . 14 6 . Fabricators 5 | . . . . . . . . 5 . Repair Stations 5 | . 2 . . . . . . 3 . Recycling Units 2 | . 2 . . . . . . . . Scanalyzers 2 | . . . . . . . 2 . . Garrison Access 3 | . . . . . 1 . 1 1 . Terminal Hacks 22 | . 9 2 5 2 2 . 2 . . Record 4 | . . . 4 . . . . . . Part Schematic 6 | . 2 2 . 1 . . 1 . . Robot Analysis 4 | . 4 . . . . . . . . Prototype ID Bank 1 | . 1 . . . . . . . . Open Door 1 | . . . . 1 . . . . . Level Access Points 1 | . . . . . . . 1 . . Branch Access Points 1 | . . . . . 1 . . . . Terminal Index 1 | . . . . . 1 . . . . Recall Investigation 1 | . 1 . . . . . . . . Zone Layout 1 | . 1 . . . . . . . . EX-Prototype ID Bank 1 | . . . 1 . . . . . . Fabricator Hacks 3 | . . . . . . . . 3 . Load Schematic 1 | . . . . . . . . 1 . Build 2 | . . . . . . . . 2 . Repair Station Hacks 4 | . 2 . . . . . . 2 . Scan Component 2 | . 1 . . . . . . 1 . Repair 2 | . 1 . . . . . . 1 . Recycling Unit Hacks 1 | . 1 . . . . . . . . Report Inventory 1 | . 1 . . . . . . . . Scanalyzer 2 | . . . . . . . 2 . . Insert Component 1 | . . . . . . . 1 . . Analyze 1 | . . . . . . . 1 . . Garrison Access Hacks 3 | . . . . . 1 . 1 1 . Unlock Access 1 | . . . . . 1 . . . . Seal Access 2 | . . . . . . . 1 1 . Unauthorized Hacks 14 | . 5 . . . 1 . 4 4 . Terminals 12 | . 4 . . . 1 . 4 3 . Track 1 | . . . . . . . 1 . . Assimilate 2 | . . . . . . . 1 1 . Botnet 8 | . 3 . . . 1 . 2 2 . Operators 1 | . 1 . . . . . . . . Fabricators 1 | . . . . . . . . 1 . Siphon 1 | . . . . . . . . 1 . Repair Stations . | . . . . . . . . . . Recycling Units 1 | . 1 . . . . . . . . Tunnel 1 | . 1 . . . . . . . . Scanalyzers . | . . . . . . . . . . Garrison Access . | . . . . . . . . . . Data Cores Recovered 1 | . . . . . . . . 1 . Used . | . . . . . . . . . . Hacking Detections 22 | . 7 1 . 1 1 . 7 5 . Full Trace Events 3 | . 2 . . 1 . . . . . Feedback Events . | . . . . . . . . . . Feedback Blocked . | . . . . . . . . . . Robot Schematics Acquired . | . . . . . . . . . . Robots Built . | . . . . . . . . . . Matter . | . . . . . . . . . . Time . | . . . . . . . . . . Total Robot Build Rating . | . . . . . . . . . . Part Schematics Acquired 7 | . 2 2 . 1 . . 2 . . Parts Built 2 | . . . . . . . . 2 . Matter 218 | . . . . . . . . 218 . Time 146 | . . . . . . . . 146 . Total Part Build Rating 6 | . . . . . . . . 6 . Parts Repaired 2 | . 1 . . . . . . 1 . Time 51 | . 26 . . . . . . 25 . Parts Recycled . | . . . . . . . . . . Recycled Matter . | . . . . . . . . . . Retrieved Matter . | . . . . . . . . . . Retrieved Components . | . . . . . . . . . . Parts Scanalyzed 1 | . . . . . . . 1 . . Part Schematics Acquired 1 | . . . . . . . 1 . . Parts Damaged . | . . . . . . . . . . Bothacking | -11 -10 -10 -10 -9 -8 -8 -8 -7 -7 ------------ Run | Scr Mat Min Exi Min Mat Gar Mat Fac Was Used RIF Installer 1 | . . . . . . 1 . . . Robots Hacked 19 | . . . . . . 6 10 3 . Non-combat 8 | . . . . . . . 6 2 . Combat 11 | . . . . . . 6 4 1 . Robot Hacks Applied 22 | . . . . . . 6 12 4 . find_chute 1 | . . . . . . . . 1 . map_walls 1 | . . . . . . . 1 . . drop_inventory 1 | . . . . . . . 1 . . purge_threat 4 | . . . . . . . 4 . . reprogram_traps 1 | . . . . . . . . 1 . block_reporting 1 | . . . . . . . . 1 . map_route 1 | . . . . . . . 1 . . spike_heat 1 | . . . . . . . 1 . . overwrite_iff 1 | . . . . . . . 1 . . streamctrl_high 1 | . . . . . . 1 . . . formatsys_low 1 | . . . . . . . 1 . . formatsys_high 8 | . . . . . . 5 2 1 . Relay Couplers Released 20 | . . . . . . 20 . . . Machine Destruction 20 | . . . . . . 20 . . . Attached 9 | . . . . . . 4 4 1 . Robots Rewired . | . . . . . . . . . . Allies Hacked . | . . . . . . . . . . Hacks Repelled . | . . . . . . . . . . Allies | -11 -10 -10 -10 -9 -8 -8 -8 -7 -7 -------- Run | Scr Mat Min Exi Min Mat Gar Mat Fac Was Total Allies 16 | . . 3 . . . 6 5 2 . Largest Group 5 | . . 3 2 2 . 5 2 3 1 Highest-Rated Group 78 | . . 40 32 32 . 78 45 56 19 Highest-Rated Ally 29 | . . 16 16 16 . 16 29 26 19 Total Orders 11 | . . . 2 . . 5 2 2 . STAY 7 | . . . 1 . . 4 1 1 . FOLLOW 4 | . . . 1 . . 1 1 1 . Ally Attacks 96 | . . 28 . 16 . 34 14 4 . Total Damage 1346 | . . 341 . 161 . 502 207 135 . Kills 14 | . . 5 . 3 . 3 2 1 . Allies Corrupted . | . . . . . . . . . . Allies Melted 1 | . . . . . . . 1 . . Intel | -11 -10 -10 -10 -9 -8 -8 -8 -7 -7 ------- Run | Scr Mat Min Exi Min Mat Gar Mat Fac Was Robot Analysis Total 4 | . 4 . . . . . . . . Derelict Logs Recovered 4 | . . 2 . 2 . . . . . Drone Launches . | . . . . . . . . . . Drone Recoveries . | . . . . . . . . . . Exploration | -11 -10 -10 -10 -9 -8 -8 -8 -7 -7 ------------- Run | Scr Mat Min Exi Min Mat Gar Mat Fac Was Turns Passed 12036 | 128 1473 1095 957 1130 271 4599 1221 979 183 Spaces Moved 5904 | 50 675 575 520 570 126 2121 647 560 60 Core 3 | . . . . . . . . . 3 Treads 4400 | 35 675 575 520 570 126 1899 . . . Legs 15 | 15 . . . . . . . . . Wheels 1486 | . . . . . . 222 647 560 57 Hover . | . . . . . . . . . . Flight . | . . . . . . . . . . Fastest Speed 120 | 120 160 180 160 180 180 140 140 140 180 Average Speed 177 | 148 178 180 178 180 199 192 145 144 220 Slowest Speed 1300 | 160 180 180 180 200 200 220 200 210 1300 Overloaded Moves . | . . . . . . . . . . Propulsion Burnouts . | . . . . . . . . . . Robots Hopped . | . . . . . . . . . . Cave-ins Triggered . | . . . . . . . . . . Exploration Rate (%) 57 | 3 92 98 69 85 13 84 53 12 61 Regions Visited 9 Branch Regions 3 Pre-discovered Areas 3 | . 1 . 1 1 . . . . . Known Exits Taken 2 | . . . . . 1 . 1 . . Unknown Exits Taken 5 | 1 1 1 1 1 . . . . . Scrap Searched 2 | . . 1 . 1 . . . . . Spaces Dug 23 | . 2 . . . . 2 16 1 2 Terrain Destroyed 134 | . 9 . . 7 . 68 23 22 5 Melee 2 | . . . . . . . 1 1 . Projectile 51 | . 4 . . 7 . 11 22 2 5 AOE 81 | . 5 . . . . 57 . 19 . Terrain Rammed . | . . . . . . . . . . Walls Destroyed . | . . . . . . . . . . Machines Disabled . | . . . . . . . . . . Actions | -11 -10 -10 -10 -9 -8 -8 -8 -7 -7 --------- Run | Scr Mat Min Exi Min Mat Gar Mat Fac Was Total 6908 | 80 804 612 559 639 140 2483 833 669 89 Wait 209 | . 13 14 . 23 . 56 62 41 . Move 5896 | 49 674 574 519 569 126 2119 646 560 60 Hop . | . . . . . . . . . . Pick Up 112 | 7 21 1 16 7 8 39 6 7 . Fast Attach 38 | 1 4 2 1 3 1 12 12 2 . Attach 34 | 2 2 . 1 2 2 13 4 4 4 Detach 17 | 1 . . 2 1 . 10 2 1 . Swap 67 | 1 8 2 2 1 . 32 10 8 3 Drop 104 | 5 15 4 18 9 . 41 11 1 . Fire 367 | 14 67 15 . 23 3 124 76 36 9 Melee 23 | . . . . . . 14 1 8 . Ram 17 | . . . . . . . 3 1 13 Kick . | . . . . . . . . . . Crush 1 | . . . . 1 . . . . . Escape Stasis 22 | . . . . . . 22 . . . Rewire 1 | . . . . . . 1 . . . Trap . | . . . . . . . . . . Miscellaneous . | . . . . . . . . . . Route ------- -11/Scrapyard -10/Materials (discovered 4 exits: [*Mat x3] / *Min) -10/Mines (discovered 3 exits: [*Mat x2] / *Exi) -10/Exiles (discovered 2 exits: *Min x2) -9/Mines -8/Materials -8/Garrison (discovered 2 exits: *Mat x2) -8/Materials (discovered 3 exits: *Fac x3) -7/Factory -7/Waste (discovered 1 exit: [*Fac]) History --------- Turn | Location | Event 12 | -11/Scrapyard | Discovered new exit (range 3) 129 | -11/Scrapyard | Entered Materials 288 | -10/Materials | Discovered new exit (range 15) 305 | -10/Materials | Build established: Mutant 481 | -10/Materials | Discovered new exit (range 8) 1066 | -10/Materials | Discovered new exit (range 4) 1215 | -10/Materials | Repaired Lgt. Treads? 1419 | -10/Materials | Build established: Hauler-Mutant 1448 | -10/Materials | Discovered new exit (range 5) 1602 | -10/Materials | Entered Mines 1606 | -10/Mines | Assisted by bots powering up and referring to "LRC-V3" 1614 | -10/Mines | Met a Derelict bent on vengeance 1785 | -10/Mines | Learned Materials terminal intel 1891 | -10/Mines | Deemed a non-threat by the Exiles lab entrance 1891 | -10/Mines | Discovered new exit (range 5) 2021 | -10/Mines | Discovered new exit (range 6) 2048 | -10/Mines | Discovered new exit (range 11) 2454 | -10/Mines | Learned Materials trap positions 2697 | -10/Mines | Entered Exiles 2697 | -10/Exiles | Accompanied by 2 allies 2724 | -10/Exiles | Discovered new exit (range 15) 2746 | -10/Exiles | Met 8R-AWN 2771 | -10/Exiles | Met EX-HEX 2854 | -10/Exiles | Met EX-DEC 2885 | -10/Exiles | Learned location of Zion (-7) 2999 | -10/Exiles | Discovered new exit (range 10) 3379 | -10/Exiles | Met EX-BIN 3400 | -10/Exiles | Aligned with FarCom system 3402 | -10/Exiles | Given EX-Vault access code 3443 | -10/Exiles | Opened EX-Vault 3456 | -10/Exiles | Found Gui. Plasma Cannon 3461 | -10/Exiles | Found AWS/Gauss 3463 | -10/Exiles | Found Modified TNC 3502 | -10/Exiles | Warned to stay clear of 0b10 Research branches 3519 | -10/Exiles | Exiles lab attacked by MAIN.C 3603 | -10/Exiles | Build established: Mutant 3654 | -10/Exiles | Stole three prototypes: Modified TNC, Gui. Plasma Cannon, AWS/Gauss 3654 | -10/Exiles | Entered Mines 3654 | -9/Mines | Accompanied by 2 allies 3711 | -9/Mines | Assembled infested the area 3716 | -9/Mines | Assisted by a Guerilla fighting off Assembled 3853 | -9/Mines | Met a Derelict shopkeep closing up shop 3933 | -9/Mines | Learned Materials terminal intel 3936 | -9/Mines | Build established: Hauler-Mutant 4051 | -9/Mines | Core integrity fell below 50% 4194 | -9/Mines | Discovered new exit (range 15) 4380 | -9/Mines | Learned location of Storage (-7) 4784 | -9/Mines | Entered Materials 4784 | -8/Materials | Evolved 4 slots: Utility x4 4785 | -8/Materials | Loaded intel: 21 trap records 4786 | -8/Materials | Loaded intel: 12 terminal locations 5055 | -8/Materials | Identified exit to Garrison 5055 | -8/Materials | Entered Garrison 5065 | -8/Garrison | Installed Relay Interface Framework 5500 | -8/Garrison | Triggered checkpoint 5564 | -8/Garrison | Garrison Relay disabled 5712 | -8/Garrison | Triggered checkpoint 5737 | -8/Garrison | Destroyed 8 combat bots 5812 | -8/Garrison | Spotted B-75 Beast 6005 | -8/Garrison | Triggered checkpoint 6078 | -8/Garrison | Triggered checkpoint 6192 | -8/Garrison | Garrison Relay disabled 6216 | -8/Garrison | Triggered checkpoint 6354 | -8/Garrison | Triggered checkpoint 6458 | -8/Garrison | Discovered new exit (range 13) 6670 | -8/Garrison | Triggered checkpoint 7034 | -8/Garrison | Garrison Relay disabled 7354 | -8/Garrison | Triggered checkpoint 7388 | -8/Garrison | Spotted B-75 Beast 7453 | -8/Garrison | Garrison Relay disabled 7529 | -8/Garrison | Triggered checkpoint 7601 | -8/Garrison | Discovered new exit (range 3) 7657 | -8/Garrison | Garrison Relay disabled 8327 | -8/Garrison | Build established: Commander-Mutant 8659 | -8/Garrison | Destroyed B-75 Beast 8697 | -8/Garrison | Destroyed B-75 Beast 9121 | -8/Garrison | Build established: Bothacker-Mutant 9654 | -8/Garrison | Entered Materials 9655 | -8/Materials | Loaded intel: 12 terminal locations 10483 | -8/Materials | Identified exit to Factory 10812 | -8/Materials | Central database locked down 10875 | -8/Materials | Entered Factory 10875 | -7/Factory | Accompanied by 1 ally 10875 | -7/Factory | Evolved 2 slots: Utility x2 10877 | -7/Factory | FarCom data flow suspended 11267 | -7/Factory | Repaired Lyr. Medium Armor Plating 11569 | -7/Factory | Fabricated Hacking Suite (x1) 11643 | -7/Factory | Fabricated Hacking Suite? 11849 | -7/Factory | Discovered new exit (range 15) 11854 | -7/Factory | Sucked down chute 11854 | -7/Factory | Entered Waste 11855 | -7/Waste | 1 allies followed down the chute 11869 | -7/Waste | EMP discharged 11896 | -7/Waste | Spotted C-40 Crusher 11904 | -7/Waste | Spotted C-40 Crusher 11911 | -7/Waste | Spotted C-40 Crusher 11952 | -7/Waste | Spotted C-40 Crusher 11956 | -7/Waste | Spotted C-40 Crusher 11962 | -7/Waste | Crushed by Compactor (1 part destroyed, 1 dropped) 11969 | -7/Waste | EMP discharged 11969 | -7/Waste | System corruption reached 10% 11985 | -7/Waste | Spotted C-40 Crusher 11994 | -7/Waste | Crushed by Compactor (1 part destroyed, 2 dropped) 11994 | -7/Waste | Discovered new exit (range 16) 11997 | -7/Waste | Crushed by Compactor (1 part destroyed, 1 dropped) 12000 | -7/Waste | Crushed by Compactor (1 part destroyed, 1 dropped) 12003 | -7/Waste | Crushed by Compactor (1 part destroyed, 2 dropped) 12007 | -7/Waste | Core integrity fell below 50% 12023 | -7/Waste | Core integrity fell below 20% 12027 | -7/Waste | Crushed by Compactor (0 parts destroyed, 1 dropped) 12028 | -7/Waste | Crushed by Compactor (0 parts destroyed, 1 dropped) 12034 | -7/Waste | Lost 4 parts (1p3u) 12037 | -7/Waste | Destroyed by C-40 Crusher with Compactor Last Messages --------------- 12006_ Magnetic Acceleration Cannon crushed. 12006_ Imp. Medium Treads crushed. 12006_ Hacking Suite crushed. 12006_ Relay Coupler [NC] crushed. 12007_ Slammed into C-40 Crusher. 12012_ Broken Gui. Plasma Cannon crushed. 12013_ Slammed into C-40 Crusher. 12015_ Critical hit. 12021_ Slammed into C-40 Crusher. 12024_ Critical hit. 12027_ Lgt. Armor Plating crushed. 12027_ Critical hit. 12028_ Autogun crushed. 12030_ Lgt. Armor Plating crushed. 12030_ Slammed into C-40 Crusher. 12031_ Autogun crushed. 12032_ Slammed into C-40 Crusher. 12033_ Critical hit. 12034_ Imp. Heavy Armor Plating destroyed. 12035_ Slammed into C-40 Crusher. Map ----- +----------------------------------------------------+ | ?????????????????????????????????????????????????? | | ?????????????????????????????????????????????????? | | ?????????????????????????????????????????????????? | | ?????????????????????????????????????????????????? | | ?????????????????????????????????????????????????? | | ?????????????????????????????????????????????????? | | ?????????????????????????????????????????????????? | | ??????????????? ??????????????????????????????? | | ??? ????????# #?????????????????????????????? | | ??? #??????# #?????????????????????????????? | | ??? #??????# #?????????????????????????????? | | ??# #??????# #?????????????????????????????? | | ### ######## #?????????? ##????????????????? | | #?????????? #???????????????? | | ?? #????????? #???????????????? | | ???? #????????? ????????????????? | | ????? #???????? ?????????????????? | | #"# #??????# #???????? #?????????????????? | | ??# #??????# #???????? #?????????????????? | | ??# #??????# #??????? #?????????????????? | | ??# #??????# #??????? #????? ??????????? | | ### ######## ######## #### ?????????? | | !! ?????????? | | CCCCCCCC!= ????????? | | CCCCCCCCCC